bitfinex/quotes_SOLUSD_20260302
["timestamp","ask_amount","ask_price","bid_price","bid_amount"]
[1772465176179,1.71585716,87.913,87.861,1.79601497]
[1772465176385,1.71585716,87.913,87.87,14.39388275]
[1772465176578,14.39388275,87.92,87.871,1.79601497]
[1772465176780,1.71585716,87.918,87.87,14.39388275]
[1772465176985,1.71585716,87.909,87.86,14.39388275]
[1772465177186,1.71585716,87.909,87.858,1.79601497]
[1772465177187,1.71585716,87.909,87.87,14.39388275]
[1772465177586,1.77064148,87.899,87.85,14.39388275]
[1772465177883,1.77064148,87.919,87.87,14.39388275]
[1772465178466,1.77064148,87.909,87.86,14.39388275]
[1772465178863,1.77064148,87.925,87.88,14.39388275]
[1772465179201,1.77064148,87.925,87.89,14.39388275]
[1772465179482,1.77064148,87.925,87.88,16.1792103]
[1772465180164,1.77064148,87.939,87.891,1.78532755]
[1772465180578,1.77064148,87.929,87.88,14.39388275]
[1772465180800,14.39388275,87.94,87.9,14.39388275]
[1772465181115,1.77064148,87.969,87.93,14.39388275]
[1772465181264,1.77064148,87.968,87.93,14.39388275]
[1772465181463,1.77064148,87.968,87.92,14.39388275]
[1772465181902,0.28432314,87.965,87.91,16.1792103]
[1772465182074,16.16452423,87.92,87.874,1.78532755]
[1772465182401,1.77064148,87.919,87.874,1.78532755]
[1772465182723,1.77064148,87.939,87.89,14.39388275]
[1772465183089,1.77064148,87.939,87.881,1.78532755]
[1772465183401,11.37095156,87.944,87.85,14.39388275]
[1772465183402,1.77064148,87.899,87.85,14.39388275]
[1772465183701,1.77064148,87.889,87.84,14.39388275]
[1772465183910,1.77064148,87.879,87.84,14.39388275]
[1772465184082,1.77064148,87.879,87.85,14.39388275]
[1772465184288,1.77064148,87.899,87.85,14.39388275]
[1772465184484,8.29308879,87.91,87.87,8.29308879]
[1772465184697,8.29308879,87.91,87.815,28.46891601]
[1772465184698,1.77064148,87.915,87.88,8.29308879]
[1772465185094,1.77064148,87.915,87.871,1.78532755]
[1772465185095,1.77064148,87.915,87.89,8.29308879]
[1772465185295,1.77064148,87.925,87.843,1.78532755]
[1772465185498,1.77064148,87.909,87.86,8.29308879]
[1772465186290,1.77064148,87.899,87.85,8.29308879]
[1772465187121,1.77064148,87.899,87.86,8.29308879]
[1772465187699,1.77064148,87.899,87.815,3.69383402]
[1772465187700,1.77064148,87.899,87.829,1.78532755]
[1772465187884,1.77064148,87.899,87.85,8.29308879]
[1772465188086,8.29308879,87.87,87.805,1.78532755]
[1772465188316,8.29308879,87.87,87.8,0.2]
[1772465188317,1.77064148,87.869,87.82,8.29308879]
[1772465188613,1.77064148,87.869,87.83,8.29308879]
[1772465188908,1.77064148,87.884,87.84,8.29308879]
[1772465189085,1.77064148,87.893,87.838,1.78532755]
[1772465189288,1.77064148,87.879,87.83,8.29308879]
[1772465189722,1.77064148,87.869,87.83,8.29308879]
[1772465191402,1.77064148,87.869,87.824,1.78532755]
[1772465191609,1.77064148,87.869,87.82,8.29308879]
[1772465191803,1.77064148,87.869,87.83,8.29308879]
[1772465192218,1.77064148,87.869,87.821,1.78532755]
[1772465192415,1.77064148,87.869,87.82,8.29308879]
[1772465193327,8.29308879,87.88,87.831,1.78532755]
[1772465193650,8.29308879,87.88,87.83,8.29308879]
[1772465193651,1.77064148,87.878,87.83,8.29308879]
[1772465194001,1.77064148,87.869,87.82,8.29308879]
[1772465194619,1.77064148,87.869,87.82,8.30018013]
[1772465194818,1.77064148,87.865,87.806,1.78532755]
[1772465195023,1.77064148,87.859,87.82,8.30018013]
[1772465195216,1.77064148,87.859,87.81,10.08550768]
[1772465195706,1.77064148,87.857,87.81,8.30018013]
[1772465196146,3.69383402,87.887,87.8,1e-08]
[1772465196147,1.77064148,87.839,87.8,1e-08]
[1772465196307,1.77064148,87.829,87.8,1e-08]
[1772465197115,1.77064148,87.829,87.78,10.08550768]
[1772465197526,1.77064148,87.829,87.79,8.30018013]
[1772465198035,1.77064148,87.827,87.79,8.30018013]
[1772465198213,1.77064148,87.839,87.8,8.30018013]
[1772465198413,1.77064148,87.852,87.81,8.30018013]
[1772465199126,1.77064148,87.839,87.8,8.30018013]
[1772465199333,1.77064148,87.829,87.78,8.30018013]
[1772465199719,1.77064148,87.842,87.81,8.30018013]
[1772465200041,1.77064148,87.842,87.799,1.78532755]
[1772465200042,1.77064148,87.842,87.8,8.30018013]
[1772465200546,1.77064148,87.809,87.77,8.50018013]
[1772465201117,1.77064148,87.829,87.79,8.30018013]
[1772465201351,1.77064148,87.849,87.8,8.30018013]
[1772465201644,1.77064148,87.839,87.79,8.30018013]
[1772465201936,1.77064148,87.839,87.77,0.2]
[1772465201937,1.77064148,87.833,87.77,1.98532755]
[1772465202139,1.77064148,87.823,87.77,1.98532755]
[1772465202314,1.77064148,87.819,87.77,10.28550768]
[1772465202517,43.53583203,87.847,87.77,0.2]
[1772465202518,1.77064148,87.809,87.77,0.2]
[1772465202844,1.77064148,87.809,87.77,8.50018013]
[1772465203148,1.77064148,87.819,87.771,1.78532755]
[1772465203513,1.77064148,87.809,87.77,0.2]
[1772465203945,3.69383402,87.837,87.74,0.2]
[1772465203946,1.77064148,87.789,87.74,0.2]
[1772465204241,0.28432314,87.798,87.74,8.30018013]
[1772465204242,1.77064148,87.769,87.74,8.30018013]
[1772465204436,1.77064148,87.769,87.72,8.30018013]
[1772465204638,3.69383402,87.797,87.71,8.30018013]
[1772465204639,1.77064148,87.759,87.71,8.30018013]
[1772465204848,1.77064148,87.779,87.74,8.30018013]
[1772465205047,1.77064148,87.779,87.741,1.78532755]
[1772465205252,1.77064148,87.779,87.75,8.30018013]
[1772465205431,1.77064148,87.779,87.741,1.78532755]
[1772465206039,1.77064148,87.793,87.75,8.30018013]
[1772465206235,1.77064148,87.806,87.77,8.30018013]
[1772465206445,1.77064148,87.819,87.78,8.30018013]
[1772465206841,1.77064148,87.829,87.79,8.30018013]
[1772465207352,1.83241968,87.819,87.77,8.30018013]
[1772465207526,1.83241968,87.819,87.78,8.30018013]
[1772465207729,1.83241968,87.819,87.771,1.76532219]
[1772465207933,1.83241968,87.809,87.77,8.30018013]
[1772465208133,1.83241968,87.829,87.781,1.76532219]
[1772465208357,1.83241968,87.842,87.8,8.30018013]
[1772465208870,1.83241968,87.842,87.738,5.96453269]
[1772465208871,1.83241968,87.855,87.82,8.30018013]
[1772465209033,1.83241968,87.855,87.811,1.76532219]
[1772465209230,1.83241968,87.868,87.82,8.30018013]
[1772465209468,1.83241968,87.868,87.83,8.30018013]
[1772465209767,1.83241968,87.901,87.86,8.30018013]
[1772465211051,1.83241968,87.901,87.851,1.76532219]
[1772465211230,1.83241968,87.869,87.824,1.76532219]
[1772465211427,1.83241968,87.859,87.811,1.76532219]
[1772465211847,1.83241968,87.859,87.772,1.13931549]
[1772465211848,1.83241968,87.849,87.8,8.30018013]
[1772465212037,8.30018013,87.84,87.797,1.76532219]
[1772465212542,1.83241968,87.839,87.797,1.76532219]
[1772465212746,8.30018013,87.81,87.77,8.30018013]
[1772465212941,1.83241968,87.819,87.771,1.76532219]
[1772465213551,8.30018013,87.81,87.771,1.76532219]
[1772465213938,8.30018013,87.8,87.753,1.76532219]
[1772465214567,1.83241968,87.789,87.748,1.76532219]
[1772465214768,8.30018013,87.8,87.75,8.30018013]
[1772465215055,8.30018013,87.81,87.761,1.76532219]
[1772465215259,1.83241968,87.815,87.77,8.30018013]
[1772465215430,1.83241968,87.828,87.781,1.76532219]
[1772465215630,8.30018013,87.82,87.781,1.76532219]
[1772465215826,8.30018013,87.82,87.768,1.76532219]
[1772465215827,8.30018013,87.81,87.768,1.76532219]
[1772465216041,1.83241968,87.809,87.761,1.76532219]
[1772465216233,10.13259981,87.79,87.748,1.76532219]
[1772465216447,1.83241968,87.803,87.76,8.30018013]
[1772465216630,8.30018013,87.8,87.751,1.76532219]
[1772465216832,8.30018013,87.8,87.76,8.30018013]
[1772465217031,8.30018013,87.82,87.771,1.76532219]
[1772465217354,8.30018013,87.82,87.725,3.69383402]
[1772465217355,1.83241968,87.799,87.753,1.76532219]
[1772465217567,1.83241968,87.799,87.76,8.30018013]
[1772465217858,1.83241968,87.809,87.761,1.76532219]
[1772465218036,8.30018013,87.82,87.771,1.76532219]
[1772465218541,1.83241968,87.836,87.791,1.76532219]
[1772465218745,8.30018013,87.83,87.791,1.76532219]
[1772465219140,8.30018013,87.85,87.801,1.76532219]
[1772465219451,90.90592402,88.004,87.82,8.30018013]
[1772465219452,8.30018013,87.86,87.82,8.30018013]
[1772465219651,1.83241968,87.859,87.819,1.76532219]
[1772465219866,1.83241968,87.859,87.82,8.30018013]
[1772465220555,1.83241968,87.873,87.821,1.76532219]
[1772465220771,4.82477569,87.916,87.787,11.39117551]
[1772465220772,1.83241968,87.887,87.841,1.76532219]
[1772465221240,8.30018013,87.89,87.841,1.76532219]
[1772465221445,1.83241968,87.899,87.851,1.76532219]
[1772465221651,1.83241968,87.889,87.841,1.76532219]
[1772465222051,1.83241968,87.915,87.87,10.06550232]
[1772465222357,1.83241968,87.889,87.84,1.76532219]
[1772465222560,8.30018013,87.86,87.81,10.06550232]
[1772465222855,1.83241968,87.869,87.82,8.30018013]
[1772465223037,3.69383402,87.897,87.811,1.76532219]
[1772465223038,1.83241968,87.859,87.811,1.76532219]
[1772465223231,8.30018013,87.85,87.811,1.76532219]
[1772465223560,1.83241968,87.875,87.84,8.30018013]
[1772465223746,1.83241968,87.879,87.831,1.76532219]
[1772465223953,1.83241968,87.859,87.81,8.30018013]
[1772465224150,1.83241968,87.859,87.781,3.69383402]
[1772465224151,1.83241968,87.872,87.83,10.06550232]
[1772465224453,1.83241968,87.897,87.85,10.06550232]
[1772465225033,1.83241968,87.897,87.86,8.30018013]
[1772465225456,1.83241968,87.897,87.851,1.76532219]
[1772465225656,1.83241968,87.897,87.86,8.30018013]
[1772465225976,1.83241968,87.897,87.85,8.30018013]
[1772465226138,1.83241968,87.869,87.823,1.76532219]
[1772465226333,8.30018013,87.86,87.81,10.06550232]
[1772465226550,1.83241968,87.859,87.811,1.76532219]
[1772465227063,1.83241968,87.849,87.798,1.76532219]
[1772465227247,1.83241968,87.849,87.81,8.30018013]
[1772465227432,1.83241968,87.849,87.8,8.30018013]
[1772465227640,1.83241968,87.849,87.801,1.76532219]
[1772465227948,1.83241968,87.849,87.8,8.30018013]
[1772465228150,33.2674807,87.896,87.81,8.30018013]
[1772465228151,1.83241968,87.852,87.81,8.30018013]
[1772465228352,1.83241968,87.899,87.841,1.76532219]
[1772465228537,1.83241968,87.899,87.85,8.30018013]
[1772465228744,1.83241968,87.891,87.85,8.30018013]
[1772465228944,1.83241968,87.889,87.841,1.76532219]
[1772465229145,4.82477569,87.927,87.86,8.30018013]
[1772465229146,1.83241968,87.902,87.86,8.30018013]
[1772465229344,1.83241968,87.902,87.87,8.30018013]
[1772465230039,1.83241968,87.902,87.86,8.30018013]
[1772465230240,1.83241968,87.916,87.87,8.30018013]
[1772465230861,1.83241968,87.916,87.863,1.76532219]
[1772465231252,1.83241968,87.915,87.88,8.30018013]
[1772465231458,1.83241968,87.93,87.89,8.30018013]
[1772465232059,10.13259981,87.93,87.89,8.30018013]
[1772465232373,1.83241968,87.929,87.88,10.06550232]
[1772465232860,1.83241968,87.929,87.89,8.30018013]
[1772465233064,1.83241968,87.942,87.9,8.30018013]
[1772465233359,1.83241968,87.929,87.881,1.76532219]
[1772465233545,1.83241968,87.929,87.89,8.30018013]
[1772465233744,3.69383402,87.938,87.881,1.76532219]
[1772465233951,8.30018013,87.95,87.901,1.64590698]
[1772465234366,8.30018013,87.94,87.901,1.64590698]
[1772465234552,8.30018013,87.95,87.901,1.64590698]
[1772465234864,8.30018013,87.94,87.901,1.64590698]
[1772465235465,8.30018013,87.94,87.891,1.64590698]
[1772465235765,1.78860654,87.959,87.91,9.94608711]
[1772465235967,8.30018013,87.94,87.9,8.30018013]
[1772465236176,1.78860654,87.949,87.901,1.64590698]
[1772465236669,1.78860654,87.959,87.911,1.64590698]
[1772465236870,8.30018013,87.95,87.911,1.64590698]
[1772465237241,1.69934372,87.949,87.9,8.30018013]
[1772465237863,8.30018013,87.94,87.901,1.72518129]
[1772465238068,8.30018013,87.95,87.901,1.72518129]
[1772465238573,1.69934372,87.959,87.911,1.72518129]
[1772465238754,1.69934372,87.985,87.941,1.72518129]
[1772465238957,8.30018013,87.98,87.941,1.72518129]
[1772465239864,8.30018013,87.99,87.942,1.72518129]
[1772465240051,8.30018013,87.99,87.95,8.30018013]
[1772465240250,1.69934372,87.979,87.93,8.30018013]
[1772465240766,1.69934372,87.969,87.92,8.30018013]
[1772465241149,8.30018013,87.94,87.89,8.30018013]
[1772465241353,8.30018013,87.93,87.89,8.30018013]
[1772465241552,8.30018013,87.94,87.89,8.30018013]
[1772465241972,8.30018013,87.93,87.88,8.30018013]
[1772465242269,8.30018013,87.93,87.848,11.38323527]
[1772465242270,8.30018013,87.92,87.871,1.72518129]
[1772465242652,1.69934372,87.929,87.88,8.30018013]
[1772465243054,1.69934372,87.929,87.881,1.72518129]
[1772465243867,8.30018013,87.94,87.891,1.72518129]
[1772465244379,8.30018013,87.94,87.9,8.30018013]
[1772465244757,8.30018013,87.94,87.891,1.72518129]
[1772465245268,8.30018013,87.94,87.865,1.13810959]
[1772465245269,1.69934372,87.958,87.901,1.72518129]
[1772465245576,1.69934372,87.939,87.866,0.28432314]
[1772465245881,39.79217117,87.957,87.812,11.38790019]
[1772465245882,1.69934372,87.889,87.812,11.38790019]
[1772465246078,1.69934372,87.889,87.84,20.83037419]
[1772465246574,1.69934372,87.879,87.83,8.30018013]
[1772465246776,1.69934372,87.879,87.84,8.30018013]
[1772465247071,1.69934372,87.879,87.83,8.30018013]
[1772465247659,1.69934372,87.859,87.82,8.30018013]
[1772465247855,1.69934372,87.859,87.805,0.98268744]
[1772465248072,1.69934372,87.859,87.81,8.30018013]
[1772465248454,1.69934372,87.859,87.81,3.30018013]
[1772465248777,1.69934372,87.859,87.82,8.30018013]
[1772465249160,1.69934372,87.859,87.805,0.98268744]
[1772465249363,1.69934372,87.859,87.788,11.3910785]
[1772465249364,8.30018013,87.87,87.82,8.30018013]
[1772465249570,11.37941236,87.878,87.83,8.30018013]
[1772465249757,1.69934372,87.859,87.804,0.98356654]
[1772465250078,11.37967135,87.876,87.8,8.30018013]
[1772465250079,1.69934372,87.849,87.8,8.30018013]
[1772465250978,4.82477569,87.905,87.772,3.69383402]
[1772465250979,1.69934372,87.883,87.84,8.30018013]
[1772465251285,1.69934372,87.883,87.85,8.30018013]
[1772465251684,1.69934372,87.899,87.834,0.98082145]
[1772465251879,3.69383402,87.924,87.834,0.98082145]
[1772465251880,1.69934372,87.897,87.86,8.30018013]
[1772465252064,1.69934372,87.897,87.87,8.30018013]
[1772465252483,1.69934372,87.897,87.86,8.30018013]
[1772465252783,1.69934372,87.897,87.822,1.13866684]
[1772465252784,1.69934372,87.897,87.85,8.30018013]
[1772465253165,1.69934372,87.897,87.833,0.97122776]
[1772465253166,1.69934372,87.897,87.86,8.30018013]
[1772465253367,1.69934372,87.897,87.85,8.30018013]
[1772465253987,1.69934372,87.899,87.85,8.30018013]
[1772465254227,8.30018013,87.88,87.83,8.30018013]
[1772465254488,1.69934372,87.869,87.82,8.30018013]
[1772465254676,3.69383402,87.904,87.799,0.96179115]
[1772465254677,1.69934372,87.859,87.799,0.96179115]
[1772465254862,1.69934372,87.859,87.82,8.30018013]
[1772465255067,8.30018013,87.87,87.82,8.30018013]
[1772465255281,1.69934372,87.872,87.83,8.30018013]
[1772465255663,8.30018013,87.87,87.83,8.30018013]
[1772465255865,1.69934372,87.839,87.785,0.96773154]
[1772465256087,1.69934372,87.839,87.791,0.96773154]
[1772465256261,1.69934372,87.839,87.81,8.30018013]
[1772465256465,1.69934372,87.874,87.83,8.29803808]
[1772465256884,1.69934372,87.849,87.785,0.96308235]
[1772465257069,1.69934372,87.849,87.8,8.29803808]
[1772465257275,1.69934372,87.839,87.79,8.29803808]
[1772465257985,1.69934372,87.829,87.78,8.29803808]
[1772465258382,1.69934372,87.829,87.79,8.29803808]
[1772465259865,8.29803808,87.85,87.81,8.29803808]
[1772465260170,1.69934372,87.869,87.811,0.95190125]
[1772465260371,1.69934372,87.859,87.82,8.29803808]
[1772465260684,1.69934372,87.889,87.85,8.29803808]
[1772465260866,1.69934372,87.889,87.86,8.29803808]
[1772465261466,1.69934372,87.909,87.87,8.29803808]
[1772465261686,1.69934372,87.909,87.844,0.94739406]
[1772465261687,1.69934372,87.945,87.88,8.29803808]
[1772465261889,45.41107937,88.085,87.9,8.29803808]
[1772465261890,1.69934372,87.96,87.9,8.29803808]
[1772465262087,1.69934372,87.939,87.89,8.29803808]
[1772465262391,1.69934372,87.939,87.91,8.29803808]
[1772465262579,1.69934372,87.952,87.92,8.29803808]
[1772465263291,1.69934372,87.952,87.896,0.93848774]
[1772465263591,1.69934372,87.952,87.92,8.29803808]
[1772465263899,1.69934372,87.967,87.92,8.29803808]
[1772465264088,1.69934372,87.967,87.93,8.29803808]
[1772465265797,1.69934372,87.992,87.96,8.29803808]
[1772465265995,1.69934372,87.979,87.901,0.93596286]
[1772465266171,1.69934372,87.969,87.92,9.23400094]
[1772465266369,1.69934372,87.969,87.92,8.29803808]
[1772465266597,1.69934372,87.969,87.907,0.93596286]
[1772465266777,1.69934372,87.969,87.92,8.29803808]
[1772465266977,1.69934372,87.989,87.94,8.29803808]
[1772465267172,1.69934372,87.989,87.932,0.9316402]
[1772465267381,1.6253207,87.998,87.96,8.29803808]
[1772465267585,8.29803808,88.01,87.96,8.29803808]
[1772465268091,1.6253207,87.998,87.95,8.29803808]
[1772465268393,1.6253207,87.998,87.96,8.29803808]
[1772465269091,8.29803808,88.01,87.96,8.29803808]
[1772465269480,1.6253207,87.998,87.96,8.29803808]
[1772465269670,1.6253207,87.998,87.95,8.29803808]
[1772465270494,3.69383402,88.034,87.93,8.29803808]
[1772465270495,1.6253207,87.979,87.93,8.29803808]
[1772465270899,1.6253207,87.969,87.92,8.29803808]
[1772465271216,1.6253207,87.959,87.912,3.69383402]
[1772465271576,1.6253207,87.959,87.91,8.29803808]
[1772465271782,1.6253207,87.959,87.869,11.38050948]
[1772465271783,1.6253207,87.919,87.874,0.90807242]
[1772465271985,11.3690625,87.958,87.85,8.29803808]
[1772465271986,1.6253207,87.899,87.85,8.29803808]
[1772465272191,1.6253207,87.879,87.83,8.29803808]
[1772465272600,8.29803808,87.86,87.822,8.59380693]
[1772465272774,1.6253207,87.859,87.822,8.59380693]
[1772465273779,1.6253207,87.839,87.79,8.29803808]
[1772465273997,8.29803808,87.83,87.79,8.29803808]
[1772465274197,1.6253207,87.839,87.8,8.29803808]
[1772465274398,11.38192978,87.859,87.791,0.91363457]
[1772465274599,1.6253207,87.879,87.804,0.90956695]
[1772465274805,1.6253207,87.869,87.83,14.41776296]
[1772465275105,1.6253207,87.899,87.86,14.41776296]
[1772465275475,1.6253207,87.899,87.85,14.41776296]
[1772465275786,14.41776296,87.91,87.87,14.41776296]
[1772465276096,1.6253207,87.919,87.87,14.41776296]
[1772465277280,1.6253207,87.919,87.88,14.41776296]
[1772465277482,1.6253207,87.919,87.87,14.41776296]
[1772465277981,1.6253207,87.919,87.847,1.1383428]
[1772465277982,14.41776296,87.91,87.847,2.04681045]
[1772465278184,14.41776296,87.9,87.86,14.41776296]
[1772465278414,16.04308366,87.9,87.86,14.41776296]
[1772465278912,11.37423508,87.918,87.835,0.90449465]
[1772465278913,1.6253207,87.889,87.835,0.90449465]
[1772465279210,14.41776296,87.9,87.86,14.41776296]
[1772465279512,1.6253207,87.889,87.85,14.41776296]
[1772465279804,1.6253207,87.869,87.82,14.41776296]
[1772465280007,1.6253207,87.869,87.79,1.13908189]
[1772465280008,1.6253207,87.869,87.83,14.41776296]
[1772465280611,1.6253207,87.882,87.84,14.41776296]
[1772465280911,5.47215037,104.65,87.809,1.13883542]
[1772465280912,1.6253207,87.897,87.86,14.41776296]
[1772465281090,14.41776296,87.89,87.85,14.41776296]
[1772465281286,1.6253207,87.889,87.84,14.41776296]
[1772465281505,1.6253207,87.889,87.85,14.41776296]
[1772465281708,14.41776296,87.9,87.86,14.41776296]
[1772465281908,1.6253207,87.899,87.85,14.41776296]
[1772465282116,14.41776296,87.87,87.824,0.28432314]
[1772465282423,14.41776296,87.83,87.777,0.89275341]
[1772465282623,1.77879307,87.819,87.77,14.41776296]
[1772465282916,14.41776296,87.81,87.77,14.41776296]
[1772465283114,16.19655603,87.81,87.76,14.41776296]
[1772465283305,1.77879307,87.809,87.76,14.41776296]
[1772465283691,1.77879307,87.799,87.75,14.61776296]
[1772465283912,1.77879307,87.799,87.76,14.41776296]
[1772465284114,1.77879307,87.799,87.75,14.61776296]
[1772465284319,1.77879307,87.799,87.76,14.41776296]
[1772465284611,1.77879307,87.829,87.79,14.41776296]
[1772465284816,1.77879307,87.829,87.78,14.41776296]
[1772465284996,1.77879307,87.819,87.768,0.03307921]
[1772465285193,1.77879307,87.819,87.77,14.41776296]
[1772465285393,1.77879307,87.819,87.755,0.03307921]
[1772465285394,1.77879307,87.819,87.78,14.41776296]
[1772465285614,1.77879307,87.819,87.77,14.41776296]
[1772465286003,1.77879307,87.799,87.76,14.41776296]
[1772465286720,1.77879307,87.849,87.79,14.41776296]
[1772465286901,1.77879307,87.849,87.751,28.48970382]
[1772465286902,1.77879307,87.862,87.83,14.41776296]
[1772465287304,14.41776296,87.88,87.83,14.41776296]
[1772465287611,14.41776296,87.89,87.84,14.41776296]
[1772465287820,1.0994646,87.889,87.84,14.41776296]
[1772465288024,14.41776296,87.88,87.84,14.41776296]
[1772465288325,14.41776296,87.87,87.83,14.41776296]
[1772465288506,14.41776296,87.88,87.84,14.41776296]
[1772465288712,1.0994646,87.886,87.84,14.41776296]
[1772465289206,14.41776296,87.87,87.823,1.70013499]
[1772465289413,1.6253207,87.868,87.82,14.41776296]
[1772465289720,1.6253207,87.849,87.8,14.41776296]
[1772465289902,1.6253207,87.849,87.81,14.41776296]
[1772465290107,14.41776296,87.86,87.811,1.70013499]
[1772465290415,14.41776296,87.85,87.81,14.41776296]
[1772465290616,14.41776296,87.85,87.801,1.70013499]
[1772465290617,1.6253207,87.849,87.801,1.70013499]
[1772465291095,1.6253207,87.849,87.81,14.41776296]
[1772465291300,1.6253207,87.847,87.801,1.70013499]
[1772465291906,14.41776296,87.81,87.771,1.70013499]
[1772465292102,14.41776296,87.8,87.757,1.70013499]
[1772465292303,16.04308366,87.8,87.757,1.70013499]
[1772465292500,14.41776296,87.79,87.757,1.70013499]
[1772465292706,14.41776296,87.79,87.75,0.2]
[1772465293013,14.41776296,87.78,87.75,0.2]
[1772465293406,16.04308366,87.8,87.751,1.70013499]
[1772465293602,14.41776296,87.81,87.77,14.41776296]
[1772465293801,1.6253207,87.813,87.761,1.70013499]
[1772465294017,14.41776296,87.81,87.77,14.41776296]
[1772465294200,14.41776296,87.81,87.761,1.70013499]
[1772465294603,1.78414327,87.809,87.761,1.70013499]
[1772465294805,1.78414327,87.809,87.77,14.41776296]
[1772465295017,1.78414327,87.822,87.78,14.41776296]
[1772465295214,14.41776296,87.81,87.76,14.41776296]
[1772465295414,14.41776296,87.79,87.75,0.2]
[1772465295721,1.78414327,87.79,87.75,0.2]
[1772465295906,43.5417289,87.834,87.72,14.41776296]
[1772465295907,1.78414327,87.769,87.72,14.41776296]
[1772465296100,14.41776296,87.75,87.716,1.74174994]
[1772465296325,1.78414327,87.769,87.721,1.74174994]
[1772465296617,14.41776296,87.78,87.731,1.74174994]
[1772465296824,14.41776296,87.8,87.751,1.74174994]
[1772465297024,1.78414327,87.799,87.751,1.74174994]
[1772465297232,1.78414327,87.799,87.76,14.41776296]
[1772465297535,1.0994646,87.832,87.761,1.71931977]
[1772465297536,1.66325242,87.809,87.761,1.71931977]
[1772465297737,14.41776296,87.8,87.751,1.71931977]
[1772465297903,1.66325242,87.804,87.76,14.41776296]
[1772465298103,14.41776296,87.8,87.76,16.13708273]
[1772465298611,1.66325242,87.799,87.76,14.41776296]
[1772465298818,1.66325242,87.789,87.74,14.41776296]
[1772465299340,1.66325242,87.804,87.76,16.13708273]
[1772465299509,3.69383402,87.844,87.74,14.41776296]
[1772465299510,1.66325242,87.789,87.74,14.41776296]
[1772465299721,3.69383402,87.834,87.724,3.69383402]
[1772465299722,14.41776296,87.75,87.724,3.69383402]
[1772465299910,14.41776296,87.76,87.713,1.71931977]
[1772465300106,14.41776296,87.76,87.72,14.41776296]
[1772465300322,14.41776296,87.77,87.721,1.71931977]
[1772465300516,1.66325242,87.777,87.731,1.71931977]
[1772465300726,1.66325242,87.777,87.721,1.71931977]
[1772465300727,14.41776296,87.77,87.721,1.71931977]
[1772465301114,14.41776296,87.77,87.73,14.41776296]
[1772465301433,16.08101538,87.8,87.76,14.41776296]
[1772465301630,1.66325242,87.8,87.77,14.41776296]
[1772465301835,1.66325242,87.799,87.752,1.71931977]
[1772465302128,1.66325242,87.789,87.74,14.41776296]
[1772465302431,16.08101538,87.78,87.739,1.71931977]
[1772465302632,16.08101538,87.78,87.73,14.41776296]
[1772465302826,16.08101538,87.78,87.74,14.41776296]
[1772465303144,1.0994646,87.811,87.712,3.69383402]
[1772465303145,1.66325242,87.807,87.751,1.71931977]
[1772465303315,1.66325242,87.779,87.736,1.71931977]
[1772465303517,14.41776296,87.77,87.73,14.41776296]
[1772465303823,14.41776296,87.76,87.72,14.41776296]
[1772465304009,14.41776296,87.75,87.71,16.13708273]
[1772465305017,1.66325242,87.739,87.69,14.41776296]
[1772465305221,16.08101538,87.73,87.681,1.71931977]
[1772465305424,1.66325242,87.729,87.681,1.71931977]
[1772465305733,1.66325242,87.719,87.67,14.41776296]
[1772465306323,1.66325242,87.709,87.66,14.51776296]
[1772465306520,14.41776296,87.7,87.66,14.51776296]
[1772465306720,1.66325242,87.709,87.66,0.1]
[1772465307035,1.66325242,87.699,87.66,0.1]
[1772465307440,1.66325242,87.699,87.66,14.51776296]
[1772465307916,1.66325242,87.702,87.66,0.1]
[1772465308120,1.66325242,87.702,87.66,14.51776296]
[1772465308431,14.41776296,87.7,87.66,14.51776296]
[1772465308628,1.66325242,87.702,87.67,14.41776296]
[1772465308935,1.66325242,87.717,87.68,14.41776296]
[1772465309136,1.66325242,87.717,87.66,0.1]
[1772465309137,1.66325242,87.709,87.661,1.71931977]
[1772465309338,1.66325242,87.719,87.671,1.71931977]
[1772465309534,1.66325242,87.709,87.66,0.1]
[1772465309741,1.66325242,87.709,87.68,14.41776296]
[1772465309916,11.39705305,87.742,87.68,14.41776296]
[1772465309917,1.66325242,87.729,87.68,14.41776296]
[1772465310114,11.39705305,87.742,87.7,14.41776296]
[1772465310115,1.66325242,87.742,87.7,14.41776296]
[1772465310321,1.66325242,87.759,87.72,14.41776296]
[1772465310519,11.39198687,87.781,87.698,1.71931977]
[1772465310520,0.28432314,87.748,87.7,14.41776296]
[1772465310732,1.66325242,87.739,87.7,14.41776296]
[1772465311129,14.41776296,87.71,87.667,1.71931977]
[1772465311331,1.66325242,87.709,87.67,14.41776296]
[1772465311639,1.66325242,87.699,87.65,14.51776296]
[1772465311836,1.66325242,87.699,87.65,0.1]
[1772465312017,1.66325242,87.714,87.67,14.41776296]
[1772465312618,14.41776296,87.71,87.66,14.51776296]
[1772465312837,1.66325242,87.709,87.66,14.51776296]
[1772465313141,1.66325242,87.699,87.66,0.1]
[1772465313537,1.94757556,87.722,87.67,14.41776296]
[1772465313751,1.66325242,87.709,87.67,14.41776296]
[1772465314037,1.66325242,87.699,87.66,14.51776296]
[1772465314234,1.66325242,87.699,87.66,0.1]
[1772465314631,1.66325242,87.699,87.66,14.51776296]
[1772465314818,3.69383402,87.717,87.67,14.41776296]